bitfinex-derivatives/quotes_SOLF0:USTF0_20260226
["timestamp","ask_amount","ask_price","bid_price","bid_amount"]
[1772067952570,22.94824446,88.836,88.796,10.1342]
[1772067958771,10.1294,88.838,88.796,10.1342]
[1772067959070,9.15496428,88.837,88.796,10.1342]
[1772067959275,9.15496428,88.836,88.796,10.1342]
[1772067959567,21.67000858,88.837,88.808,0.07141018]
[1772067959770,9.16246582,88.836,88.808,0.07141018]
[1772067959972,21.67000858,88.837,88.808,0.07141018]
[1772067960167,9.16248696,88.836,88.808,0.07141018]
[1772067960372,21.67000858,88.837,88.796,10.1342]
[1772067960569,8.69016454,88.86,88.699,36.40706747]
[1772067960570,21.67000858,88.831,88.758,23.80256964]
[1772067960873,8.69016454,88.86,88.741,23.80256964]
[1772067960874,21.67000858,88.819,88.741,23.80256964]
[1772067961068,8.69016454,88.82,88.741,23.80256964]
[1772067961069,21.67000858,88.817,88.741,23.80256964]
[1772067961264,21.67000858,88.815,88.741,23.80256964]
[1772067961464,21.67000858,88.813,88.741,23.80256964]
[1772067961665,21.67000858,88.811,88.741,23.80256964]
[1772067961874,21.74117407,88.788,88.744,10.1401]
[1772067962071,21.67000858,88.786,88.701,23.80256964]
[1772067962271,21.67000858,88.784,88.701,23.80256964]
[1772067962468,21.67000858,88.771,88.713,10.1436]
[1772067962671,21.67000858,88.771,88.701,23.80256964]
[1772067962876,21.67000858,88.769,88.685,347.26049214]
[1772067963081,21.67000858,88.759,88.685,323.4579225]
[1772067963284,8.69016454,88.78,88.685,323.4579225]
[1772067963285,21.67000858,88.781,88.703,23.80256964]
[1772067964380,21.67000858,88.781,88.72,23.80256964]
[1772067965279,21.67000858,88.798,88.72,23.80256964]
[1772067965479,21.67000858,88.798,88.739,10.1407]
[1772067965480,10.1341,88.797,88.739,10.1407]
[1772067965679,10.1341,88.797,88.72,23.80256964]
[1772067966080,21.67000858,88.798,88.736,23.80256964]
[1772067966781,21.67000858,88.818,88.736,23.80256964]
[1772067966986,21.67000858,88.818,88.741,23.80256964]
[1772067967995,21.67000858,88.818,88.772,10.1369]
[1772067968894,21.67000858,88.818,88.74,8.69016454]
[1772067968895,21.67000858,88.836,88.783,10.1357]
[1772067969881,21.67000858,88.836,88.791,10.1347]
[1772067970387,0.07099298,88.822,88.791,10.1347]
[1772067970992,0.07099298,88.822,88.731,20.2833]
[1772067970993,21.74100156,88.822,88.77,10.1372]
[1772067971291,21.74100156,88.822,88.741,23.80256964]
[1772067971490,21.67000858,88.822,88.741,23.80256964]
[1772067971691,21.67000858,88.822,88.678,157.8525]
[1772067971692,21.67000858,88.85,88.766,23.80256964]
[1772067972484,10.1293,88.84,88.785,10.1354]
[1772067972686,21.67000858,88.839,88.766,23.80256964]
[1772067973393,21.67000858,88.839,88.787,10.1352]
[1772067973594,21.67000858,88.839,88.766,23.80256964]
[1772067973894,21.67000858,88.839,88.777,10.1363]
[1772067974892,21.67000858,88.838,88.777,10.1363]
[1772067975592,21.67000858,88.826,88.767,10.1375]
[1772067976893,21.67000858,88.822,88.767,10.1375]
[1772067977096,8.69016454,88.85,88.765,23.80256964]
[1772067977097,21.67000858,88.84,88.765,23.80256964]
[1772067977590,0.07096843,88.803,88.765,23.80256964]
[1772067977792,10.1293,88.839,88.784,10.1356]
[1772067977989,21.67000858,88.838,88.784,10.1356]
[1772067979294,10.1305,88.83,88.775,10.1366]
[1772067979897,10.1305,88.83,88.802,0.0714018]
[1772067980088,21.67000858,88.838,88.792,10.1346]
[1772067980489,21.67000858,88.854,88.776,23.80256964]
[1772067980897,21.67000858,88.852,88.776,23.80256964]
[1772067981199,21.67000858,88.839,88.758,23.80256964]
[1772067981789,21.67000858,88.838,88.758,23.80256964]
[1772067981996,10.1308,88.826,88.772,10.1368]
[1772067982394,21.67000858,88.825,88.772,10.1368]
[1772067982598,10.44106167,88.858,88.758,23.80256964]
[1772067982599,21.67000858,88.859,88.782,23.80256964]
[1772067983098,21.67000858,88.856,88.782,23.80256964]
[1772067983895,10.1281,88.851,88.782,23.80256964]
[1772067984106,21.67000858,88.85,88.782,23.80256964]
[1772067984897,10.1283,88.848,88.795,10.1343]
[1772067985688,23.49406531,88.838,88.787,10.1352]
[1772067985901,23.49406531,88.838,88.751,20.2787]
[1772067985902,23.49406531,88.838,88.759,22.03600803]
[1772067986402,17.7044049,88.849,88.759,22.03600803]
[1772067986403,23.49406531,88.847,88.759,22.03600803]
[1772067986697,0.07142784,88.807,88.759,22.03600803]
[1772067986896,0.07142784,88.807,88.774,22.03600803]
[1772067987496,23.49406531,88.833,88.774,22.03600803]
[1772067987694,23.49406531,88.833,88.742,22.03600803]
[1772067987890,10.1319,88.817,88.766,10.1376]
[1772067988095,23.49406531,88.834,88.766,22.03600803]
[1772067988302,0.07129765,88.796,88.766,22.03600803]
[1772067989993,0.07129765,88.796,88.766,32.17360803]
[1772067991006,0.07129765,88.796,88.758,10.1385]
[1772067991202,0.07129765,88.796,88.73,8.69555417]
[1772067991203,23.56536296,88.796,88.731,22.03600803]
[1772067991500,23.49406531,88.796,88.731,22.03600803]
[1772067992796,10.1344,88.795,88.75,10.1394]
[1772067995004,23.49406531,88.796,88.731,22.03600803]
[1772067995705,23.49406531,88.796,88.757,10.1386]
[1772067995901,23.49406531,88.796,88.731,22.03600803]
[1772067996297,23.49406531,88.796,88.749,10.1395]
[1772067997002,0.07147491,88.781,88.731,22.03600803]
[1772067997203,22.15005845,88.78,88.716,6.0]
[1772067997500,22.15005845,88.78,88.714,21.75437812]
[1772067997903,10.137,88.772,88.725,10.1423]
[1772067998599,22.15005845,88.767,88.691,21.75437812]
[1772067998797,8.69555417,88.76,88.691,21.75437812]
[1772067999002,22.15005845,88.759,88.691,21.75437812]
[1772067999202,22.15005845,88.759,88.697,21.75437812]
[1772067999509,22.15005845,88.791,88.697,21.75437812]
[1772067999808,22.15005845,88.791,88.69,8.69555417]
[1772067999809,22.15005845,88.791,88.745,10.14]
[1772068003810,22.15005845,88.791,88.736,21.75437812]
[1772068003811,22.15005845,88.791,88.752,10.1392]
[1772068004605,22.15005845,88.791,88.744,10.1401]
[1772068005607,22.15005845,88.789,88.736,21.75437812]
[1772068005803,22.22158851,88.776,88.721,21.75437812]
[1772068006213,0.07153006,88.776,88.74,10.1406]
[1772068006512,22.15005845,88.792,88.74,10.1406]
[1772068008008,22.15005845,88.79,88.74,10.1406]
[1772068008809,22.15005845,88.787,88.732,10.1415]
[1772068009209,22.15005845,88.787,88.721,21.75437812]
[1772068010519,22.15005845,88.775,88.724,10.1424]
[1772068010710,22.15005845,88.775,88.705,21.75437812]
[1772068011206,22.15005845,88.769,88.705,21.75437812]
[1772068011914,22.15005845,88.767,88.716,10.1433]
[1772068012311,22.15005845,88.799,88.731,21.75437812]
[1772068012507,22.15005845,88.799,88.763,10.138]
[1772068013605,22.15005845,88.799,88.755,10.1388]
[1772068016214,0.07132921,88.786,88.755,10.1388]
[1772068017021,0.07132921,88.786,88.7,33.89]
[1772068017022,21.8561403,88.782,88.733,22.85920573]
[1772068017416,0.07132921,88.786,88.752,10.1392]
[1772068017616,21.8561403,88.799,88.752,10.1392]
[1772068018911,21.8561403,88.814,88.76,22.85920573]
[1772068019914,21.8561403,88.814,88.773,10.1368]
[1772068020513,10.1306,88.828,88.782,10.1358]
[1772068022213,13.7690922,88.884,88.776,22.85920573]
[1772068022214,21.8561403,88.852,88.776,22.85920573]
[1772068023619,8.69739502,88.85,88.776,22.85920573]
[1772068023815,21.8561403,88.849,88.776,22.85920573]
[1772068024329,31.9849403,88.844,88.776,22.85920573]
[1772068026026,31.9849403,88.844,88.795,10.1343]
[1772068026625,8.93208419,88.869,88.758,22.85920573]
[1772068026626,21.8561403,88.838,88.758,22.85920573]
[1772068026922,21.8561403,88.829,88.758,22.85920573]
[1772068027927,10.1328,88.809,88.76,10.1383]
[1772068029430,21.8561403,88.803,88.752,10.1392]
[1772068030428,21.8561403,88.803,88.752,32.99840573]
[1772068031035,10.1336,88.802,88.752,32.99840573]
[1772068031733,8.69739502,88.83,88.758,22.85920573]
[1772068031734,10.1322,88.815,88.758,22.85920573]
[1772068031938,8.9316544,88.824,88.758,22.85920573]
[1772068032139,21.8561403,88.848,88.761,22.85920573]
[1772068033037,10.1293,88.84,88.793,10.1345]
[1772068033337,8.9316544,88.862,88.794,22.85920573]
[1772068033538,64.31942424,88.898,88.74,8.69739502]
[1772068033539,53.06942424,88.898,88.82,8.69739502]
[1772068033739,36.17152424,88.898,88.841,14.5143728]
[1772068034235,36.17152424,88.898,88.836,10.1296]
[1772068034941,36.17152424,88.898,88.854,10.1276]
[1772068035639,36.17152424,88.898,88.837,14.44927836]
[1772068035640,36.17152424,88.898,88.844,10.1287]
[1772068035839,36.17152424,88.898,88.845,14.38682939]
[1772068036232,0.07168207,88.88,88.845,14.38682939]
[1772068036437,21.92782237,88.88,88.824,15.21610663]
[1772068036838,21.8561403,88.88,88.824,15.21610663]
[1772068038040,21.8561403,88.88,88.828,10.1305]
[1772068040049,21.8561403,88.88,88.806,16.3722993]
[1772068040741,21.8561403,88.876,88.811,16.31584265]
[1772068042039,21.8561403,88.876,88.818,10.1316]
[1772068043045,21.8561403,88.872,88.818,10.1316]
[1772068043549,21.8561403,88.872,88.79,8.69739502]
[1772068043550,21.8561403,88.868,88.806,10.1331]
[1772068043751,21.8561403,88.868,88.794,16.11686504]
[1772068044042,8.69739502,88.87,88.794,16.11686504]
[1772068044043,21.8561403,88.853,88.794,16.11686504]
[1772068044949,21.8561403,88.852,88.794,26.25126504]
[1772068046046,21.27907168,88.849,88.784,10.1356]
[1772068046949,10.1296,88.837,88.784,10.1356]
[1772068047154,21.27907168,88.836,88.784,10.1356]
[1772068047953,21.27907168,88.834,88.784,10.1356]
[1772068048354,21.27907168,88.834,88.792,10.1346]
[1772068049847,20.248,88.886,88.792,10.1346]
[1772068049848,21.27907168,88.859,88.792,10.1346]
[1772068050054,21.27907168,88.859,88.801,10.1336]
[1772068050254,21.27907168,88.859,88.79,15.73258676]
[1772068050450,10.1252,88.876,88.818,10.1317]
[1772068050656,10.1252,88.876,88.813,15.66145337]
[1772068052052,10.1252,88.876,88.827,10.1306]
[1772068052254,10.1252,88.876,88.79,8.68369401]
[1772068052255,10.1241,88.885,88.828,14.84609547]
[1772068052445,20.7835609,88.919,88.877,10.1249]
[1772068052650,30.9017609,88.937,88.853,14.84609547]
[1772068052851,497.82428038,88.92,88.853,14.84609547]
[1772068053050,20.7835609,88.919,88.853,14.84609547]
[1772068053254,20.7835609,88.919,88.873,10.1254]
[1772068053450,477.04071948,88.92,88.853,14.84609547]
[1772068053943,477.04071948,88.92,88.85,8.68369401]
[1772068053944,20.7835609,88.937,88.889,10.1235]
[1772068054749,20.7835609,88.956,88.89,15.57476774]
[1772068055853,20.7835609,88.956,88.871,15.5240489]
[1772068056552,20.7835609,88.956,88.834,157.5751]
[1772068056553,20.7835609,88.956,88.888,15.32147411]
[1772068057054,1.047e-05,88.998,88.917,15.31731634]
[1772068057055,20.7835609,88.979,88.917,15.31731634]
[1772068057258,1.047e-05,88.998,88.917,15.31731634]
[1772068057456,1.047e-05,88.998,88.988,15.2722868]
[1772068057662,20.7835609,89.043,88.964,15.2722868]
[1772068057957,20.7835609,89.014,88.944,15.2722868]
[1772068058154,20.7835609,89.014,88.931,10.1187]
[1772068058354,20.7835609,89.014,88.925,15.12106425]
[1772068058548,20.7835609,89.014,88.923,52.99570744]
[1772068058549,20.7835609,89.064,88.945,15.07643665]
[1772068058749,20.7835609,89.049,88.961,15.07643665]
[1772068059150,20.7835609,89.049,88.998,10.1112]
[1772068059350,8.68369401,89.1,88.981,15.07253173]
[1772068059552,20.1877,89.152,88.968,157.3386]
[1772068059553,156.9914,89.166,89.001,20.78388738]
[1772068059755,8.68369401,89.11,89.001,20.78388738]
[1772068059953,8.68369401,89.11,89.037,10.1067]
[1772068060155,8.68369401,89.13,89.038,20.78388738]
[1772068060351,8.68369401,89.14,89.041,20.78388738]
[1772068060751,10.0964,89.129,89.041,30.89018738]
[1772068061156,10.0964,89.129,89.044,10.106]
[1772068061357,0.0718452,89.079,89.021,20.78388738]
[1772068061762,0.0718452,89.079,89.027,30.89178738]
[1772068061959,20.7835609,89.102,89.027,30.89178738]
[1772068061960,20.7835609,89.102,89.028,20.78388738]
[1772068062461,20.7835609,89.098,89.001,20.78388738]
[1772068062660,20.7835609,89.079,89.001,20.78388738]
[1772068062866,20.7835609,89.071,88.98,20.78388738]
[1772068063356,1.954348,89.095,88.902,157.4555]
[1772068063357,20.7835609,89.052,88.963,10.1151]
[1772068063556,20.7835609,89.052,88.963,30.89898738]
[1772068063756,20.7835609,89.052,88.97,8.68369401]
[1772068064069,20.7835609,89.052,88.99,20.78388738]
[1772068064269,20.7835609,89.079,88.99,20.78388738]
[1772068064562,20.7835609,89.075,88.99,20.78388738]
[1772068065565,20.7835609,89.063,88.99,20.78388738]
[1772068065765,0.07115165,89.041,88.99,20.78388738]
[1772068066460,8.68369401,89.08,88.992,20.78388738]
[1772068066665,20.7835609,89.084,88.992,20.78388738]
[1772068066970,13.74489307,89.226,88.99,8.68369401]
[1772068066971,20.7835609,89.133,89.05,8.68369401]
[1772068067563,20.7835609,89.133,89.072,10.1028]
[1772068067765,77.07327465,89.172,89.07,8.68369401]
[1772068067970,77.07327465,89.172,89.05,8.68369401]
[1772068067971,77.07327465,89.169,89.05,8.68369401]
[1772068068165,77.04901015,89.167,89.085,10.1013]
[1772068068860,77.04901015,89.165,89.07,8.68369401]
[1772068069059,77.04901015,89.165,89.05,8.68369401]
[1772068069665,77.04277258,89.15,89.071,10.1029]
[1772068069861,85.72646659,89.15,89.05,8.68369401]
[1772068070169,77.07327465,89.129,89.03,8.68369401]
[1772068070760,77.07327465,89.129,89.053,10.1049]
[1772068071369,77.07327465,89.127,89.04,10.1064]
[1772068071762,77.07327465,89.12,89.051,10.1051]
[1772068072167,77.07327465,89.12,89.075,0.07237638]
[1772068073872,77.07327465,89.118,89.075,0.07237638]
[1772068074069,77.07327465,89.118,89.037,10.1068]
[1772068074976,77.07143298,89.116,89.049,10.1054]
[1772068075177,77.07143298,89.116,89.02,8.68369401]
[1772068075566,77.06574953,89.113,89.02,8.68369401]
[1772068076978,0.07269749,89.075,89.02,8.68369401]
[1772068077578,77.06574953,89.113,89.02,8.68369401]
[1772068077882,77.06574953,89.113,89.047,10.1056]
[1772068078381,77.06574953,89.113,89.02,8.68369401]
[1772068079572,77.100428,89.132,89.06,8.68369401]
[1772068079880,77.100428,89.119,89.02,8.68369401]
[1772068080081,77.100428,89.119,89.051,10.1052]
[1772068080273,77.100428,89.119,89.02,8.68369401]
[1772068080877,77.100428,89.088,89.002,471.54909125]
[1772068081277,77.100428,89.119,89.002,471.54909125]
[1772068081483,77.100428,89.116,89.02,8.68369401]
[1772068081680,77.100428,89.116,89.021,33.68]
[1772068081871,77.100428,89.116,89.04,8.68369401]
[1772068082476,77.100428,89.116,89.02,8.68369401]
[1772068082675,77.100428,89.099,89.002,471.54909125]
[1772068083183,157.0533,89.131,89.002,471.54909125]
[1772068083184,77.100428,89.076,89.002,471.54909125]
[1772068083782,77.100428,89.069,89.005,10.1104]
[1772068084182,77.100428,89.069,89.002,471.54909125]
[1772068084483,77.100428,89.069,88.91,157.4414]
[1772068084484,77.100428,89.048,88.95,8.68369401]
[1772068084683,77.100428,89.043,88.95,8.68369401]
[1772068084884,0.0722509,89.044,88.971,10.1143]
[1772068084885,77.100428,89.039,88.971,10.1143]
[1772068085075,77.100428,89.039,88.911,53.3532072]
[1772068085276,77.100428,89.039,88.93,8.68369401]
[1772068085277,8.68369401,89.03,88.93,8.68369401]
[1772068085475,77.100428,89.029,88.93,8.68369401]
[1772068085678,77.100428,89.027,88.93,8.68369401]
[1772068085978,77.100428,89.027,88.92,8.68369401]
[1772068086182,77.100428,89.027,88.94,8.68369401]
[1772068086382,77.100428,89.027,88.966,10.1148]
[1772068086680,77.100428,89.027,88.92,8.68369401]
[1772068086984,77.100428,89.005,88.945,10.1172]
[1772068087585,77.100428,89.005,88.932,10.1186]
[1772068088192,77.100428,88.993,88.919,10.1202]
[1772068088776,77.100428,88.981,88.911,53.3532072]
[1772068088982,0.07213727,88.965,88.911,53.3532072]
[1772068089584,85.78412201,89.0,88.911,53.3532072]
[1772068089981,77.100428,89.0,88.92,8.68369401]
[1772068090886,0.07121354,88.969,88.92,8.68369401]
[1772068091488,0.07121354,88.969,88.911,53.3532072]
[1772068091883,0.07121354,88.969,88.923,10.1197]
[1772068092085,77.100428,88.982,88.923,10.1197]
[1772068092690,77.100428,88.982,88.911,53.3532072]
[1772068092691,77.100428,88.982,88.934,10.1185]
[1772068092890,77.100428,88.982,88.911,53.3532072]
[1772068093295,0.07165457,88.967,88.911,53.3532072]
[1772068093897,77.100428,89.001,88.911,53.3532072]
[1772068094399,77.100428,89.001,88.961,10.1154]
[1772068095502,77.100428,89.001,88.951,10.1166]
[1772068095706,77.100428,89.001,88.93,8.68369401]
[1772068096901,77.100428,89.035,88.93,8.68369401]
[1772068097898,77.100428,89.019,88.959,10.1156]
[1772068098796,77.100428,89.017,88.959,10.1156]
[1772068098997,77.100428,89.017,88.949,10.1167]
[1772068099397,8.68369401,89.02,88.93,8.68369401]
[1772068099398,77.100428,89.006,88.93,8.68369401]
[1772068099701,77.100428,89.006,88.967,10.1147]
[1772068101208,77.100428,89.006,88.978,0.07163435]
[1772068102002,77.100428,89.006,88.92,8.68369401]
[1772068104604,77.100428,89.004,88.92,8.68369401]
[1772068105104,77.100428,89.004,88.945,10.1172]
[1772068105299,77.100428,89.004,88.92,8.68369401]
[1772068105904,8.68369401,89.03,88.92,8.68369401]
[1772068105905,77.14099048,89.002,88.92,8.68369401]
[1772068106904,77.14099048,89.0,88.942,10.1175]
[1772068107304,77.14099048,89.0,88.92,8.68369401]
[1772068107706,77.14099048,89.0,88.962,0.07224928]
[1772068107903,85.82468449,89.0,88.911,53.3532072]
[1772068108110,77.14099048,89.0,88.911,53.3532072]
[1772068109308,0.07124247,88.964,88.911,53.3532072]
[1772068109508,0.07124247,88.964,88.912,6.0]
[1772068109909,77.14099048,88.982,88.952,10.1164]
[1772068113510,42.25856608,89.004,88.94,8.65946019]
[1772068115812,42.25856608,89.004,88.921,33.68]
[1772068116019,42.25856608,89.004,88.963,0.0715007]
[1772068118810,42.25856608,89.004,88.92,8.65946019]
[1772068119020,42.25856608,89.004,88.956,10.116]
[1772068119223,42.25856608,89.004,88.923,20.2395]
[1772068119614,42.25856608,89.004,88.958,10.1158]
[1772068121118,0.07235899,88.99,88.958,10.1158]
[1772068122314,0.07235899,88.99,88.94,8.65946019]
[1772068122821,60.61405356,89.02,88.98,10.1132]
[1772068124624,60.61405356,89.02,88.941,20.2785081]
[1772068124921,60.59279627,89.008,88.921,20.2785081]
[1772068125425,60.5926648,89.005,88.96,10.1155]
[1772068125622,60.5926648,89.005,88.922,20.2785081]
[1772068125923,60.5926648,89.005,88.94,8.65946019]
[1772068126619,60.5926648,89.005,88.977,10.1136]
[1772068126823,60.5926648,89.005,88.94,8.65946019]
[1772068127022,60.5926648,89.005,88.926,20.2785081]
[1772068127223,60.5926648,89.005,88.934,20.2785081]
[1772068127424,60.5926648,89.005,88.931,20.2785081]
[1772068127818,60.5926648,89.005,88.964,10.115]
[1772068128223,60.5926648,89.005,88.934,20.2785081]
[1772068128224,60.5926648,89.005,88.942,20.2785081]
[1772068128424,60.5926648,89.005,88.976,10.1137]
[1772068128725,60.58918349,89.039,88.949,20.2785081]
[1772068128913,70.69608349,89.037,88.989,10.1122]
[1772068129323,70.69608349,89.037,88.956,20.2785081]
[1772068129724,0.07197256,89.022,88.956,20.2785081]
[1772068129922,60.67664719,89.022,88.956,20.2785081]
[1772068130119,60.67664719,89.022,88.981,10.1131]
[1772068130426,60.60467463,89.022,88.981,10.1131]
[1772068130925,60.60467463,89.022,88.97,10.1143]
[1772068131625,60.60467463,89.022,88.977,10.1135]
[1772068132326,60.57369479,89.02,88.969,10.1145]
[1772068132920,60.57369479,89.018,88.969,10.1145]
[1772068134020,60.57357487,89.015,88.969,10.1145]
[1772068134221,25.36057487,89.015,88.952,20.2785081]
[1772068134420,25.36057487,89.015,88.962,20.2785081]
[1772068134824,0.07173799,88.992,88.962,20.2785081]
[1772068135128,25.36057487,89.015,88.971,10.1143]
[1772068135522,25.36057487,89.015,88.968,0.07188832]
[1772068135827,8.65946019,89.03,88.968,0.07188832]
[1772068136129,42.75385057,89.029,88.968,0.07188832]
[1772068136423,42.75385057,89.021,88.95,28.93796829]
[1772068136623,42.75385057,89.021,88.957,20.2785081]
[1772068137027,42.75385057,89.021,88.955,20.2785081]
[1772068137228,42.75385057,89.021,88.956,20.2785081]
[1772068138023,42.75385057,89.021,88.978,10.1135]
[1772068140335,42.75385057,89.021,88.995,10.1116]
[1772068140634,42.75385057,89.021,88.962,20.2785081]
[1772068140831,42.75385057,89.021,88.979,10.1133]
[1772068141329,42.75385057,89.021,88.966,20.2785081]
[1772068141522,42.89173109,89.047,88.97,8.65946019]
[1772068141723,42.89173109,89.047,88.972,20.2785081]
[1772068142625,42.79771272,89.042,88.984,10.1128]
[1772068142822,42.79771272,89.042,88.952,6.0]
[1772068142823,42.79771272,89.042,88.967,20.2785081]
[1772068143025,42.79771272,89.042,88.962,20.2785081]
[1772068143334,42.80126408,89.029,88.922,27.62722541]
[1772068143536,42.80126408,89.029,88.923,27.62722541]
[1772068143732,10.1089,89.018,88.958,10.1157]
[1772068143933,32.66201003,89.017,88.95,8.65946019]
[1772068145031,32.66201003,89.017,88.98,10.1132]
[1772068145426,10.1051,89.053,88.997,10.1113]
[1772068146334,0.07327219,89.034,88.987,10.1124]
[1772068146842,8.43859285,89.06,88.987,10.1124]
[1772068147238,10.1057,89.047,88.987,10.1124]
[1772068147437,24.90220357,89.046,88.987,10.1124]
[1772068147742,330.98631337,89.061,88.952,6.0]
[1772068147743,24.90220357,89.033,88.952,6.0]
[1772068147937,24.90220357,89.033,88.889,157.4781]
[1772068147938,24.90220357,89.033,88.931,6.0]
[1772068148138,24.90220357,89.033,88.934,6.0]
[1772068149050,24.88773079,89.028,88.971,10.1142]
[1772068150136,24.88773079,89.028,88.935,6.0]
[1772068150338,0.07187578,89.008,88.936,6.0]
[1772068150543,0.07187578,89.008,88.937,6.0]
[1772068150733,0.07187578,89.008,88.978,10.1135]
[1772068150937,24.87887661,89.025,88.978,10.1135]
[1772068151139,24.87887661,89.025,88.938,6.0]
[1772068151344,24.87887661,89.025,88.939,6.0]
[1772068151939,24.87887661,89.023,88.969,10.1144]
[1772068152245,24.87887661,89.023,88.94,6.0]
[1772068152442,24.87887661,89.023,88.941,6.0]
[1772068153745,0.0717125,88.991,88.941,6.0]
[1772068153947,0.0717125,88.991,88.942,6.0]
[1772068154145,24.87887661,89.023,88.942,6.0]
[1772068154452,24.87887661,89.023,88.943,6.0]
[1772068154647,24.87887661,89.023,88.95,8.65946019]
[1772068155050,24.79523304,89.02,88.97,10.1143]
[1772068155447,8.65946019,89.05,88.951,6.0]
[1772068155448,24.79523304,89.016,88.951,6.0]
[1772068155642,24.79523304,89.016,88.931,6.0]
[1772068155842,24.79523304,89.016,88.932,6.0]
[1772068156245,24.82199433,89.004,88.951,10.1165]
[1772068157853,24.8232323,89.003,88.951,10.1165]
[1772068158559,24.8232323,89.003,88.914,27.62722541]
[1772068158560,24.8284644,88.999,88.942,10.1175]
[1772068158859,24.8284644,88.999,88.914,6.0]
[1772068159060,24.8284644,88.999,88.911,53.3532072]
[1772068159851,10.1125,88.987,88.934,10.1184]
[1772068160057,0.07239126,88.964,88.934,10.1184]
[1772068160363,0.07239126,88.964,88.911,53.3532072]
[1772068163159,0.07239126,88.964,88.919,20.97048197]
[1772068164156,0.07239126,88.964,88.918,20.97048197]
[1772068164862,0.07239126,88.964,88.934,10.1184]
[1772068168962,0.07239126,88.964,88.875,19.15181831]
[1772068168963,19.41206481,88.946,88.875,19.15181831]
[1772068169353,19.41206481,88.918,88.86,10.1268]
[1772068169862,19.41206481,88.916,88.85,10.128]
[1772068170067,19.41206481,88.916,88.841,19.15181831]
[1772068170661,19.41206481,88.916,88.821,334.3802152]
[1772068170662,19.41206481,88.916,88.851,19.15181831]
[1772068171258,19.41206481,88.916,88.858,29.27891831]
[1772068173059,31.4777,88.976,88.85,8.65946019]
[1772068173060,19.83957776,88.935,88.859,20.28172735]
[1772068173567,13.74489307,89.029,88.821,334.3802152]
[1772068173568,19.83957776,88.978,88.914,20.28172735]
[1772068175562,0.07300656,88.955,88.914,20.28172735]
[1772068175759,0.07300656,88.955,88.916,10.1205]
[1772068177970,0.07300656,88.955,88.904,10.1219]
[1772068177971,19.91258432,88.955,88.904,10.1219]
[1772068178267,19.91258432,88.955,88.897,20.28172735]
[1772068178463,19.83957776,88.955,88.881,20.28172735]
[1772068178668,19.83957776,88.941,88.862,20.28172735]
[1772068178862,19.91230797,88.935,88.862,20.28172735]
[1772068179064,19.83957776,88.932,88.869,10.1259]
[1772068179262,19.83957776,88.932,88.862,20.28172735]
[1772068179966,19.83957776,88.932,88.876,20.28172735]
[1772068181068,19.83957776,88.932,88.881,10.1244]
[1772068181268,19.83957776,88.93,88.861,20.28172735]
[1772068181568,0.07148327,88.913,88.861,20.28172735]
[1772068181770,19.83957776,88.912,88.846,51.68274092]
[1772068181965,19.83957776,88.912,88.847,20.28172735]
[1772068182371,19.83957776,88.91,88.847,20.28172735]
[1772068183768,10.1226,88.898,88.847,20.28172735]
[1772068184070,10.1226,88.898,88.846,51.68274092]
[1772068184071,19.83957776,88.897,88.829,20.28172735]
[1772068185065,19.83957776,88.897,88.841,20.28172735]
[1772068185467,19.83957776,88.929,88.867,20.28172735]
[1772068185866,19.83957776,88.929,88.879,10.1247]
[1772068186068,19.83957776,88.95,88.881,20.28172735]
[1772068187974,0.07133681,88.924,88.885,10.124]
[1772068188565,19.91091457,88.924,88.885,10.124]
[1772068189069,19.91091457,88.924,88.876,10.1251]
[1772068189270,19.91091457,88.924,88.862,20.28172735]
[1772068189673,19.83957776,88.922,88.863,10.1265]
[1772068189975,19.83957776,88.922,88.862,20.28172735]
[1772068190170,19.83957776,88.922,88.841,20.28172735]
[1772068190774,19.83957776,88.922,88.856,20.28172735]
[1772068191268,19.83957776,88.922,88.841,20.28172735]
[1772068192976,19.83957776,88.922,88.868,10.1259]
[1772068194275,0.07090183,88.904,88.868,10.1259]
[1772068194577,0.07090183,88.904,88.84,28.94480216]
[1772068194578,19.91047959,88.904,88.84,28.94480216]
[1772068194774,19.91047959,88.904,88.841,20.28172735]
[1772068194977,19.91047959,88.904,88.859,10.127]
[1772068195277,19.83957776,88.904,88.859,10.127]
[1772068195679,10.1197,88.924,88.859,10.127]
[1772068195979,0.07118048,88.89,88.859,30.69882535]
[1772068196181,20.98933573,88.923,88.867,10.1261]
[1772068197083,20.98933573,88.921,88.867,10.1261]
[1772068197575,20.98933573,88.9,88.836,10.1296]
[1772068197781,20.98933573,88.9,88.788,20.2701]
[1772068197782,20.98933573,88.9,88.837,20.57182535]
[1772068198175,20.98933573,88.9,88.842,10.1289]
[1772068198974,20.98933573,88.888,88.83,10.1303]